[Event "Titled Tuesday Blitz March 28 Early 2023"]
[White "Naroditsky, Daniel"]
[Black "Lewtak, Damian"]
[WhiteFideId "2026961"]
[BlackFideId "1141724"]
[WhiteElo "2633"]
[BlackElo "2302"]
[Result "1-0"]
[Round "08"]
[TimeControl "180+2"]
[Date "2023.03.28"]
[WhiteClock "0:00:25"]
[BlackClock "0:00:31"]

1. d4 {[%clk 0:03:00]}  d5 {[%clk 0:02:59]} 2. Nc3 {[%clk 0:03:01]}  e6 {[%clk 0:02:59]} 3. Bf4 {[%clk 0:03:01]}  a6 {[%clk 0:02:57]} 4. e3 {[%clk 0:02:59]}  c5 {[%clk 0:02:56]} 5. dxc5 {[%clk 0:03:00]}  Bxc5 {[%clk 0:02:55]} 6. Nf3 {[%clk 0:03:00]}  Nf6 {[%clk 0:02:49]} 7. Bd3 {[%clk 0:02:59]}  Bd6 {[%clk 0:02:38]} 8. Bxd6 {[%clk 0:02:56]}  Qxd6 {[%clk 0:02:39]} 9. O-O {[%clk 0:02:54]}  Nc6 {[%clk 0:02:32]} 10. e4 {[%clk 0:02:52]}  dxe4 {[%clk 0:02:32]} 11. Nxe4 {[%clk 0:02:52]}  Nxe4 {[%clk 0:02:31]} 12. Bxe4 {[%clk 0:02:53]}  Qxd1 {[%clk 0:02:31]} 13. Raxd1 {[%clk 0:02:54]}  Ke7 {[%clk 0:02:15]} 14. Bxc6 {[%clk 0:02:47]}  bxc6 {[%clk 0:02:15]} 15. Ne5 {[%clk 0:02:48]}  c5 {[%clk 0:02:11]} 16. Rd3 {[%clk 0:02:33]}  f6 {[%clk 0:02:10]} 17. Nc6+ {[%clk 0:02:29]}  Kf7 {[%clk 0:02:10]} 18. Rfd1 {[%clk 0:02:09]}  e5 {[%clk 0:01:51]} 19. Rc3 {[%clk 0:01:50]}  Be6 {[%clk 0:01:41]} 20. Rxc5 {[%clk 0:01:49]}  Rac8 {[%clk 0:01:36]} 21. c4 {[%clk 0:01:40]}  g5 {[%clk 0:01:29]} 22. b4 {[%clk 0:01:35]}  Kg7 {[%clk 0:01:19]} 23. a4 {[%clk 0:01:33]}  Rhe8 {[%clk 0:00:59]} 24. b5 {[%clk 0:01:32]}  axb5 {[%clk 0:00:59]} 25. cxb5 {[%clk 0:01:22]}  Bb3 {[%clk 0:00:56]} 26. Ra1 {[%clk 0:01:06]}  Red8 {[%clk 0:00:48]} 27. a5 {[%clk 0:00:49]}  Rd6 {[%clk 0:00:47]} 28. b6 {[%clk 0:00:42]}  Rd7 {[%clk 0:00:32]} 29. a6 {[%clk 0:00:37]}  Ra8 {[%clk 0:00:31]} 30. Rcc1 {[%clk 0:00:25]} 1-0


[Site "https://www.chess.com"]

[Event "Titled Tuesday Blitz March 28 Early 2023"]
[White "Wei, Yi"]
[Black "Titichoca Daza, Daniel"]
[WhiteFideId "8603405"]
[BlackFideId "3309550"]
[WhiteElo "2686"]
[BlackElo "2095"]
[Result "1-0"]
[Round "08"]
[TimeControl "180+2"]
[Date "2023.03.28"]
[WhiteClock "0:02:01"]
[BlackClock "0:01:21"]

1. b3 {[%clk 0:03:00]}  b6 {[%clk 0:02:50]} 2. e4 {[%clk 0:03:00]}  Bb7 {[%clk 0:02:51]} 3. Nc3 {[%clk 0:03:00]}  c5 {[%clk 0:02:51]} 4. Bb2 {[%clk 0:03:01]}  e6 {[%clk 0:02:51]} 5. Qe2 {[%clk 0:03:01]}  Nc6 {[%clk 0:02:52]} 6. O-O-O {[%clk 0:03:02]}  a6 {[%clk 0:02:49]} 7. Nf3 {[%clk 0:03:02]}  d6 {[%clk 0:02:43]} 8. d4 {[%clk 0:03:00]}  cxd4 {[%clk 0:02:42]} 9. Nxd4 {[%clk 0:03:00]}  Qc7 {[%clk 0:02:37]} 10. Nxc6 {[%clk 0:02:48]}  Bxc6 {[%clk 0:02:35]} 11. Nd5 {[%clk 0:02:48]}  Qb7 {[%clk 0:02:21]} 12. h4 {[%clk 0:02:39]}  Rc8 {[%clk 0:02:20]} 13. Nb4 {[%clk 0:02:25]}  Bxe4 {[%clk 0:01:58]} 14. f3 {[%clk 0:02:25]}  a5 {[%clk 0:01:52]} 15. Qb5+ {[%clk 0:02:14]}  Qd7 {[%clk 0:01:49]} 16. fxe4 {[%clk 0:02:09]}  axb4 {[%clk 0:01:48]} 17. Qxb6 {[%clk 0:02:09]}  Ne7 {[%clk 0:01:41]} 18. Rxd6 {[%clk 0:02:07]}  Nd5 {[%clk 0:01:32]} 19. Rxd5 {[%clk 0:02:01]}  Rxc2+ {[%clk 0:01:23]} 20. Kxc2 {[%clk 0:02:00]}  Qc8+ {[%clk 0:01:23]} 21. Kb1 {[%clk 0:02:00]}  exd5 {[%clk 0:01:24]} 22. Bb5+ {[%clk 0:02:00]}  Ke7 {[%clk 0:01:24]} 23. exd5 {[%clk 0:02:01]}  Qf5+ {[%clk 0:01:23]} 24. Ka1 {[%clk 0:02:01]}  Qxd5 {[%clk 0:01:21]} 25. Re1+ {[%clk 0:02:01]} 1-0


[Site "https://www.chess.com"]

[Event "Titled Tuesday Blitz March 28 Early 2023"]
[White "Moussard, Jules"]
[Black "Martic, Ivan"]
[WhiteFideId "642908"]
[BlackFideId "929301"]
[WhiteElo "2610"]
[BlackElo "2360"]
[Result "1-0"]
[Round "08"]
[TimeControl "180+2"]
[Date "2023.03.28"]
[WhiteClock "0:02:58"]
[BlackClock "0:01:02"]

1. b3 {[%clk 0:03:00]}  d5 {[%clk 0:02:58]} 2. Bb2 {[%clk 0:03:01]}  Bf5 {[%clk 0:02:58]} 3. Nf3 {[%clk 0:03:02]}  c6 {[%clk 0:02:58]} 4. e3 {[%clk 0:03:03]}  Nf6 {[%clk 0:02:57]} 5. d4 {[%clk 0:03:04]}  e6 {[%clk 0:02:57]} 6. Bd3 {[%clk 0:03:05]}  Be7 {[%clk 0:02:54]} 7. O-O {[%clk 0:03:05]}  O-O {[%clk 0:02:52]} 8. c4 {[%clk 0:03:06]}  Nbd7 {[%clk 0:02:51]} 9. Qc2 {[%clk 0:03:06]}  Bxd3 {[%clk 0:02:50]} 10. Qxd3 {[%clk 0:03:07]}  a6 {[%clk 0:02:39]} 11. Nc3 {[%clk 0:03:08]}  b5 {[%clk 0:02:37]} 12. Rac1 {[%clk 0:03:07]}  Rc8 {[%clk 0:02:21]} 13. e4 {[%clk 0:03:06]}  bxc4 {[%clk 0:02:18]} 14. bxc4 {[%clk 0:03:06]}  dxe4 {[%clk 0:01:57]} 15. Nxe4 {[%clk 0:03:07]}  Nxe4 {[%clk 0:01:58]} 16. Qxe4 {[%clk 0:03:06]}  Bf6 {[%clk 0:01:53]} 17. Rfd1 {[%clk 0:03:04]}  Qa5 {[%clk 0:01:47]} 18. Bc3 {[%clk 0:03:00]}  Qxa2 {[%clk 0:01:39]} 19. Nd2 {[%clk 0:02:59]}  Qa3 {[%clk 0:01:31]} 20. Rc2 {[%clk 0:03:00]}  Qa4 {[%clk 0:01:12]} 21. Ra1 {[%clk 0:02:59]}  Nc5 {[%clk 0:01:02]} 22. dxc5 {[%clk 0:02:58]} 1-0


[Site "https://www.chess.com"]

[Event "Titled Tuesday Blitz March 28 Early 2023"]
[White "Costachi, Mihnea"]
[Black "Drori, Saar"]
[WhiteFideId "1217518"]
[BlackFideId "2812444"]
[WhiteElo "2456"]
[BlackElo "2322"]
[Result "0-1"]
[Round "08"]
[TimeControl "180+2"]
[Date "2023.03.28"]
[WhiteClock "0:00:34"]
[BlackClock "0:00:19"]

1. b3 {[%clk 0:03:00]}  c5 {[%clk 0:02:57]} 2. Bb2 {[%clk 0:03:00]}  Nc6 {[%clk 0:02:54]} 3. Nf3 {[%clk 0:03:00]}  d6 {[%clk 0:02:54]} 4. e3 {[%clk 0:03:01]}  e5 {[%clk 0:02:54]} 5. d3 {[%clk 0:02:59]}  g6 {[%clk 0:02:52]} 6. c4 {[%clk 0:02:59]}  Bg7 {[%clk 0:02:52]} 7. Nc3 {[%clk 0:03:00]}  Nge7 {[%clk 0:02:52]} 8. Be2 {[%clk 0:03:00]}  O-O {[%clk 0:02:52]} 9. O-O {[%clk 0:03:01]}  d5 {[%clk 0:02:50]} 10. cxd5 {[%clk 0:02:59]}  Nxd5 {[%clk 0:02:51]} 11. Rc1 {[%clk 0:03:00]}  b6 {[%clk 0:02:42]} 12. Nd2 {[%clk 0:02:18]}  Be6 {[%clk 0:02:35]} 13. Bf3 {[%clk 0:02:17]}  Rc8 {[%clk 0:02:33]} 14. Nc4 {[%clk 0:02:16]}  Ndb4 {[%clk 0:02:20]} 15. Be2 {[%clk 0:02:04]}  Bf5 {[%clk 0:02:19]} 16. e4 {[%clk 0:02:00]}  Be6 {[%clk 0:02:14]} 17. a3 {[%clk 0:02:00]}  Na6 {[%clk 0:02:14]} 18. Nb5 {[%clk 0:02:01]}  Nc7 {[%clk 0:02:09]} 19. Nbd6 {[%clk 0:01:59]}  Rb8 {[%clk 0:02:08]} 20. a4 {[%clk 0:01:59]}  a6 {[%clk 0:02:02]} 21. f4 {[%clk 0:01:54]}  b5 {[%clk 0:01:55]} 22. axb5 {[%clk 0:01:55]}  axb5 {[%clk 0:01:54]} 23. Nxe5 {[%clk 0:01:38]}  Qxd6 {[%clk 0:01:48]} 24. Nxc6 {[%clk 0:01:29]}  Bxb2 {[%clk 0:01:34]} 25. Nxb8 {[%clk 0:01:23]}  Bxc1 {[%clk 0:01:32]} 26. Qxc1 {[%clk 0:01:24]}  Rxb8 {[%clk 0:01:30]} 27. f5 {[%clk 0:01:25]}  Bxb3 {[%clk 0:01:26]} 28. Kh1 {[%clk 0:01:19]}  Ne8 {[%clk 0:00:51]} 29. Qc3 {[%clk 0:01:14]}  c4 {[%clk 0:00:45]} 30. dxc4 {[%clk 0:01:10]}  bxc4 {[%clk 0:00:37]} 31. Bxc4 {[%clk 0:01:10]}  Qc7 {[%clk 0:00:30]} 32. fxg6 {[%clk 0:01:11]}  hxg6 {[%clk 0:00:30]} 33. Qxb3 {[%clk 0:00:49]}  Rxb3 {[%clk 0:00:29]} 34. Bxb3 {[%clk 0:00:50]}  Nd6 {[%clk 0:00:28]} 35. Bd5 {[%clk 0:00:44]}  Qe7 {[%clk 0:00:23]} 36. h3 {[%clk 0:00:45]}  Kg7 {[%clk 0:00:18]} 37. Re1 {[%clk 0:00:43]}  Qe5 {[%clk 0:00:18]} 38. Kg1 {[%clk 0:00:44]}  f5 {[%clk 0:00:18]} 39. Bc6 {[%clk 0:00:39]}  fxe4 {[%clk 0:00:18]} 40. Ba4 {[%clk 0:00:39]}  Qd4+ {[%clk 0:00:18]} 41. Kh2 {[%clk 0:00:38]}  Qxa4 {[%clk 0:00:19]} 42. h4 {[%clk 0:00:36]}  Qd4 {[%clk 0:00:18]} 43. g3 {[%clk 0:00:35]}  Qd2+ {[%clk 0:00:19]} 44. Re2 {[%clk 0:00:34]}  Qxe2+ {[%clk 0:00:19]} 0-1


[Site "https://www.chess.com"]

[Event "Titled Tuesday Blitz March 28 Early 2023"]
[White "Kosakowski, Jakub"]
[Black "Castellanos Villela, Alejandro"]
[WhiteFideId "1185080"]
[BlackFideId "3446379"]
[WhiteElo "2488"]
[BlackElo "2102"]
[Result "1-0"]
[Round "08"]
[TimeControl "180+2"]
[Date "2023.03.28"]
[WhiteClock "0:01:01"]
[BlackClock "0:00:04"]

1. d4 {[%clk 0:02:59]}  Nf6 {[%clk 0:02:59]} 2. Nf3 {[%clk 0:02:58]}  e6 {[%clk 0:02:59]} 3. c4 {[%clk 0:02:57]}  c5 {[%clk 0:02:59]} 4. d5 {[%clk 0:02:56]}  exd5 {[%clk 0:03:00]} 5. cxd5 {[%clk 0:02:56]}  d6 {[%clk 0:03:01]} 6. Nc3 {[%clk 0:02:56]}  g6 {[%clk 0:03:01]} 7. g3 {[%clk 0:02:57]}  Bg7 {[%clk 0:03:02]} 8. Bg2 {[%clk 0:02:58]}  O-O {[%clk 0:03:02]} 9. O-O {[%clk 0:02:59]}  Re8 {[%clk 0:03:02]} 10. Nd2 {[%clk 0:02:59]}  a6 {[%clk 0:03:01]} 11. a4 {[%clk 0:02:58]}  Nbd7 {[%clk 0:03:01]} 12. a5 {[%clk 0:02:59]}  b5 {[%clk 0:02:58]} 13. axb6 {[%clk 0:02:59]}  Nxb6 {[%clk 0:02:59]} 14. Nb3 {[%clk 0:03:00]}  Nc4 {[%clk 0:02:38]} 15. Ra4 {[%clk 0:02:59]}  Nb6 {[%clk 0:02:33]} 16. Ra2 {[%clk 0:02:59]}  Nc4 {[%clk 0:02:32]} 17. Re1 {[%clk 0:02:58]}  a5 {[%clk 0:02:27]} 18. e4 {[%clk 0:02:58]}  Ba6 {[%clk 0:02:25]} 19. Bf4 {[%clk 0:02:57]}  Rb8 {[%clk 0:02:20]} 20. Bf1 {[%clk 0:02:49]}  Qb6 {[%clk 0:02:18]} 21. Nxa5 {[%clk 0:02:12]}  Nxa5 {[%clk 0:01:30]} 22. Bxa6 {[%clk 0:02:11]}  Qxa6 {[%clk 0:01:31]} 23. Qa4 {[%clk 0:02:10]}  Ra8 {[%clk 0:01:31]} 24. Rea1 {[%clk 0:02:10]}  Qd3 {[%clk 0:01:26]} 25. Qb5 {[%clk 0:02:08]}  Qxb5 {[%clk 0:01:11]} 26. Nxb5 {[%clk 0:02:08]}  Nxe4 {[%clk 0:01:11]} 27. Nc7 {[%clk 0:02:06]}  g5 {[%clk 0:00:37]} 28. Be3 {[%clk 0:01:44]}  Nc4 {[%clk 0:00:24]} 29. Rxa8 {[%clk 0:01:42]}  Rxa8 {[%clk 0:00:24]} 30. Rxa8+ {[%clk 0:01:43]}  Bf8 {[%clk 0:00:24]} 31. Bc1 {[%clk 0:01:27]}  Kg7 {[%clk 0:00:19]} 32. Ra4 {[%clk 0:01:11]}  Ned2 {[%clk 0:00:16]} 33. b3 {[%clk 0:01:11]}  Nf3+ {[%clk 0:00:12]} 34. Kg2 {[%clk 0:01:11]}  Ncd2 {[%clk 0:00:10]} 35. Ne8+ {[%clk 0:01:03]}  Kg6 {[%clk 0:00:09]} 36. Nxd6 {[%clk 0:01:04]}  Bxd6 {[%clk 0:00:08]} 37. Ra6 {[%clk 0:01:04]}  Ne1+ {[%clk 0:00:06]} 38. Kh1 {[%clk 0:01:04]}  Ne4 {[%clk 0:00:04]} 39. Be3 {[%clk 0:00:59]}  Kf5 {[%clk 0:00:04]} 40. Ra7 {[%clk 0:00:59]}  Be5 {[%clk 0:00:04]} 41. Rxf7+ {[%clk 0:00:58]}  Kg6 {[%clk 0:00:04]} 42. Re7 {[%clk 0:00:59]}  Kf6 {[%clk 0:00:04]} 43. Re6+ {[%clk 0:01:00]}  Kf5 {[%clk 0:00:03]} 44. g4+ {[%clk 0:01:00]}  Kxg4 {[%clk 0:00:03]} 45. Rxe5 {[%clk 0:01:01]}  Kf3 {[%clk 0:00:04]} 46. Rxe4 {[%clk 0:01:00]}  Kxe4 {[%clk 0:00:04]} 47. d6 {[%clk 0:01:01]} 1-0


[Site "https://www.chess.com"]

[Event "Titled Tuesday Blitz March 28 Early 2023"]
[White "Zemlyanskii, Ivan"]
[Black "Nurmanova, Alua"]
[WhiteFideId "24249971"]
[BlackFideId "13729390"]
[WhiteElo "2233"]
[BlackElo "2253"]
[Result "0-1"]
[Round "08"]
[TimeControl "180+2"]
[Date "2023.03.28"]
[WhiteClock "0:00:19"]
[BlackClock "0:00:39"]

1. d4 {[%clk 0:03:00]}  Nf6 {[%clk 0:02:59]} 2. c4 {[%clk 0:03:01]}  g6 {[%clk 0:02:58]} 3. h4 {[%clk 0:03:00]}  h5 {[%clk 0:02:55]} 4. Nc3 {[%clk 0:03:00]}  Bg7 {[%clk 0:02:55]} 5. Bg5 {[%clk 0:03:01]}  O-O {[%clk 0:02:53]} 6. e4 {[%clk 0:03:00]}  d6 {[%clk 0:02:51]} 7. Be2 {[%clk 0:03:01]}  c5 {[%clk 0:02:48]} 8. d5 {[%clk 0:02:58]}  e6 {[%clk 0:02:43]} 9. g4 {[%clk 0:02:28]}  exd5 {[%clk 0:02:40]} 10. gxh5 {[%clk 0:02:27]}  Qa5 {[%clk 0:02:34]} 11. Bxf6 {[%clk 0:01:58]}  Bxf6 {[%clk 0:02:32]} 12. hxg6 {[%clk 0:01:59]}  Bxc3+ {[%clk 0:02:10]} 13. bxc3 {[%clk 0:01:53]}  Qxc3+ {[%clk 0:02:11]} 14. Kf1 {[%clk 0:01:53]}  fxg6 {[%clk 0:02:10]} 15. Qxd5+ {[%clk 0:01:48]}  Kg7 {[%clk 0:02:07]} 16. Rd1 {[%clk 0:01:48]}  Nc6 {[%clk 0:02:01]} 17. h5 {[%clk 0:01:43]}  Qg3 {[%clk 0:01:44]} 18. f3 {[%clk 0:01:32]}  Nd4 {[%clk 0:01:32]} 19. hxg6 {[%clk 0:01:27]}  Qxg6 {[%clk 0:01:16]} 20. Rh2 {[%clk 0:01:07]}  Be6 {[%clk 0:01:11]} 21. Qxb7+ {[%clk 0:01:06]}  Kf6 {[%clk 0:01:03]} 22. Qc7 {[%clk 0:00:55]}  Rg8 {[%clk 0:01:00]} 23. Nh3 {[%clk 0:00:30]}  Bxh3+ {[%clk 0:00:59]} 24. Kf2 {[%clk 0:00:25]}  Qg3+ {[%clk 0:00:57]} 25. Ke3 {[%clk 0:00:25]}  Qxh2 {[%clk 0:00:54]} 26. Rd2 {[%clk 0:00:22]}  Rae8 {[%clk 0:00:48]} 27. Qh7 {[%clk 0:00:21]}  Qg1+ {[%clk 0:00:43]} 28. Kd3 {[%clk 0:00:20]}  Qb1+ {[%clk 0:00:43]} 29. Ke3 {[%clk 0:00:21]}  Nf5+ {[%clk 0:00:41]} 30. Kf4 {[%clk 0:00:19]}  Qc1 {[%clk 0:00:39]} 0-1


[Site "https://www.chess.com"]

[Event "Titled Tuesday Blitz March 28 Early 2023"]
[White "Fiorito, Joaquin"]
[Black "Krysa, Leandro"]
[WhiteFideId "180173"]
[BlackFideId "116807"]
[WhiteElo "2157"]
[BlackElo "2485"]
[Result "1-0"]
[Round "08"]
[TimeControl "180+2"]
[Date "2023.03.28"]
[WhiteClock "0:02:05"]
[BlackClock "0:00:22"]

1. d4 {[%clk 0:02:57]}  Nf6 {[%clk 0:02:59]} 2. c4 {[%clk 0:02:58]}  g6 {[%clk 0:02:59]} 3. Nc3 {[%clk 0:02:58]}  d5 {[%clk 0:02:59]} 4. Nf3 {[%clk 0:02:58]}  Bg7 {[%clk 0:02:59]} 5. h4 {[%clk 0:02:58]}  c6 {[%clk 0:02:57]} 6. cxd5 {[%clk 0:02:58]}  cxd5 {[%clk 0:02:57]} 7. Bf4 {[%clk 0:02:59]}  Nc6 {[%clk 0:02:57]} 8. e3 {[%clk 0:02:59]}  O-O {[%clk 0:02:58]} 9. Qb3 {[%clk 0:02:59]}  Na5 {[%clk 0:02:52]} 10. Qa3 {[%clk 0:02:59]}  a6 {[%clk 0:02:49]} 11. Be2 {[%clk 0:02:59]}  Re8 {[%clk 0:02:48]} 12. Ne5 {[%clk 0:03:00]}  Bf8 {[%clk 0:02:45]} 13. b4 {[%clk 0:02:56]}  Nc6 {[%clk 0:02:42]} 14. Qb2 {[%clk 0:02:44]}  h5 {[%clk 0:02:28]} 15. O-O {[%clk 0:02:38]}  Bf5 {[%clk 0:02:23]} 16. Rfc1 {[%clk 0:02:38]}  Rc8 {[%clk 0:02:12]} 17. Nxc6 {[%clk 0:02:29]}  Rxc6 {[%clk 0:02:10]} 18. b5 {[%clk 0:02:29]}  axb5 {[%clk 0:01:47]} 19. Bxb5 {[%clk 0:02:29]}  Rb6 {[%clk 0:01:47]} 20. Na4 {[%clk 0:02:28]}  Bd7 {[%clk 0:01:38]} 21. Nxb6 {[%clk 0:02:25]}  Qxb6 {[%clk 0:01:39]} 22. Rab1 {[%clk 0:02:24]}  Bxb5 {[%clk 0:00:56]} 23. Qxb5 {[%clk 0:02:24]}  Qa7 {[%clk 0:00:57]} 24. Be5 {[%clk 0:02:18]}  Rd8 {[%clk 0:00:46]} 25. a4 {[%clk 0:02:12]}  Ng4 {[%clk 0:00:36]} 26. Bc7 {[%clk 0:02:09]}  Ra8 {[%clk 0:00:31]} 27. a5 {[%clk 0:02:07]}  e6 {[%clk 0:00:27]} 28. Qxb7 {[%clk 0:02:06]}  Ba3 {[%clk 0:00:22]} 29. Qxa7 {[%clk 0:02:06]}  Rxa7 {[%clk 0:00:22]} 30. Rc2 {[%clk 0:02:05]} 1-0


[Site "https://www.chess.com"]

[Event "Titled Tuesday Blitz March 28 Early 2023"]
[White "Salemgareev, Tagir"]
[Black "Jeet, Jain"]
[WhiteFideId "24199052"]
[BlackFideId "5073022"]
[WhiteElo "2366"]
[BlackElo "2067"]
[Result "1-0"]
[Round "08"]
[TimeControl "180+2"]
[Date "2023.03.28"]
[WhiteClock "0:00:11"]
[BlackClock "0:00:01"]

1. Nf3 {[%clk 0:03:00]}  Nf6 {[%clk 0:02:56]} 2. g3 {[%clk 0:02:59]}  b6 {[%clk 0:02:57]} 3. Bg2 {[%clk 0:02:58]}  Bb7 {[%clk 0:02:57]} 4. O-O {[%clk 0:02:59]}  g6 {[%clk 0:02:58]} 5. d4 {[%clk 0:02:59]}  Bg7 {[%clk 0:02:58]} 6. c4 {[%clk 0:02:59]}  e6 {[%clk 0:02:59]} 7. Nc3 {[%clk 0:02:57]}  O-O {[%clk 0:02:57]} 8. Qc2 {[%clk 0:02:57]}  d5 {[%clk 0:02:54]} 9. cxd5 {[%clk 0:02:56]}  exd5 {[%clk 0:02:48]} 10. Bf4 {[%clk 0:02:55]}  c6 {[%clk 0:02:43]} 11. b4 {[%clk 0:02:54]}  Re8 {[%clk 0:02:40]} 12. Rfd1 {[%clk 0:02:53]}  Ne4 {[%clk 0:02:39]} 13. Nxe4 {[%clk 0:02:32]}  dxe4 {[%clk 0:02:38]} 14. Ne5 {[%clk 0:02:31]}  Qe7 {[%clk 0:02:27]} 15. a3 {[%clk 0:01:53]}  f6 {[%clk 0:02:01]} 16. Nc4 {[%clk 0:01:51]}  g5 {[%clk 0:01:52]} 17. Bxb8 {[%clk 0:01:32]}  Raxb8 {[%clk 0:01:51]} 18. Ne3 {[%clk 0:01:32]}  Qe6 {[%clk 0:01:49]} 19. Qc4 {[%clk 0:01:28]}  Qxc4 {[%clk 0:01:32]} 20. Nxc4 {[%clk 0:01:28]}  Ba6 {[%clk 0:01:33]} 21. Rac1 {[%clk 0:01:26]}  Re6 {[%clk 0:01:32]} 22. Bh3 {[%clk 0:01:18]}  Re7 {[%clk 0:01:30]} 23. e3 {[%clk 0:01:15]}  Rd8 {[%clk 0:01:19]} 24. Nd2 {[%clk 0:01:14]}  Bb7 {[%clk 0:01:17]} 25. Bf5 {[%clk 0:01:11]}  Rde8 {[%clk 0:01:17]} 26. Rc2 {[%clk 0:01:07]}  Bf8 {[%clk 0:01:10]} 27. Rdc1 {[%clk 0:01:05]}  Kg7 {[%clk 0:01:10]} 28. g4 {[%clk 0:00:57]}  h6 {[%clk 0:00:59]} 29. Rxc6 {[%clk 0:00:56]}  Bxc6 {[%clk 0:00:59]} 30. Rxc6 {[%clk 0:00:57]}  Kf7 {[%clk 0:00:52]} 31. Kg2 {[%clk 0:00:56]}  Kg7 {[%clk 0:00:51]} 32. b5 {[%clk 0:00:51]}  Rf7 {[%clk 0:00:46]} 33. a4 {[%clk 0:00:49]}  Rfe7 {[%clk 0:00:47]} 34. Nc4 {[%clk 0:00:43]}  Rf7 {[%clk 0:00:38]} 35. Nd2 {[%clk 0:00:39]}  Rfe7 {[%clk 0:00:39]} 36. Kg3 {[%clk 0:00:39]}  Kf7 {[%clk 0:00:36]} 37. h4 {[%clk 0:00:34]}  gxh4+ {[%clk 0:00:35]} 38. Kxh4 {[%clk 0:00:34]}  Kg7 {[%clk 0:00:36]} 39. Nf1 {[%clk 0:00:27]}  Rb7 {[%clk 0:00:28]} 40. Ng3 {[%clk 0:00:27]}  Rbe7 {[%clk 0:00:28]} 41. Nh5+ {[%clk 0:00:26]}  Kh8 {[%clk 0:00:25]} 42. Nxf6 {[%clk 0:00:26]}  Ra8 {[%clk 0:00:22]} 43. Nxe4 {[%clk 0:00:26]}  Rb7 {[%clk 0:00:21]} 44. d5 {[%clk 0:00:23]}  a6 {[%clk 0:00:21]} 45. d6 {[%clk 0:00:22]}  axb5 {[%clk 0:00:21]} 46. axb5 {[%clk 0:00:23]}  Rd8 {[%clk 0:00:19]} 47. d7 {[%clk 0:00:23]}  Kg7 {[%clk 0:00:16]} 48. Kg3 {[%clk 0:00:21]}  Be7 {[%clk 0:00:13]} 49. Kf3 {[%clk 0:00:19]}  Bf8 {[%clk 0:00:13]} 50. Nd6 {[%clk 0:00:17]}  Bxd6 {[%clk 0:00:08]} 51. Rxd6 {[%clk 0:00:17]}  Kf7 {[%clk 0:00:08]} 52. Rxh6 {[%clk 0:00:17]}  Ke7 {[%clk 0:00:09]} 53. Rc6 {[%clk 0:00:16]}  Kf7 {[%clk 0:00:06]} 54. g5 {[%clk 0:00:16]}  Ke7 {[%clk 0:00:06]} 55. Kg4 {[%clk 0:00:16]}  Ra7 {[%clk 0:00:06]} 56. f4 {[%clk 0:00:16]}  Ra3 {[%clk 0:00:06]} 57. e4 {[%clk 0:00:15]}  Ra1 {[%clk 0:00:06]} 58. Be6 {[%clk 0:00:15]}  Rg1+ {[%clk 0:00:05]} 59. Kf5 {[%clk 0:00:15]}  Rf8+ {[%clk 0:00:05]} 60. Ke5 {[%clk 0:00:15]}  Rb1 {[%clk 0:00:06]} 61. Rxb6 {[%clk 0:00:13]}  Rd8 {[%clk 0:00:05]} 62. f5 {[%clk 0:00:12]}  Rc1 {[%clk 0:00:03]} 63. f6+ {[%clk 0:00:12]}  Kf8 {[%clk 0:00:04]} 64. g6 {[%clk 0:00:13]}  Rc5+ {[%clk 0:00:03]} 65. Kf4 {[%clk 0:00:12]}  Rg5 {[%clk 0:00:01]} 66. Kxg5 {[%clk 0:00:11]} 1-0


[Site "https://www.chess.com"]

[Event "Titled Tuesday Blitz March 28 Early 2023"]
[White "Arias, Juan Cruz"]
[Black "Mikhailovsky, Vladimir"]
[WhiteFideId "118540"]
[BlackFideId "34105414"]
[WhiteElo "2243"]
[BlackElo "2293"]
[Result "0-1"]
[Round "08"]
[TimeControl "180+2"]
[Date "2023.03.28"]
[WhiteClock "0:00:54"]
[BlackClock "0:01:24"]

1. e4 {[%clk 0:03:00]}  e5 {[%clk 0:02:56]} 2. Nc3 {[%clk 0:02:52]}  Bc5 {[%clk 0:02:53]} 3. Bc4 {[%clk 0:02:35]}  d6 {[%clk 0:02:51]} 4. d3 {[%clk 0:02:34]}  Nc6 {[%clk 0:02:51]} 5. h3 {[%clk 0:02:28]}  Be6 {[%clk 0:02:50]} 6. Nge2 {[%clk 0:02:26]}  Nge7 {[%clk 0:02:48]} 7. O-O {[%clk 0:02:26]}  O-O {[%clk 0:02:47]} 8. Kh1 {[%clk 0:02:26]}  Bxc4 {[%clk 0:02:47]} 9. dxc4 {[%clk 0:02:26]}  f5 {[%clk 0:02:48]} 10. f3 {[%clk 0:02:25]}  f4 {[%clk 0:02:46]} 11. Na4 {[%clk 0:02:19]}  Bb6 {[%clk 0:02:43]} 12. Nxb6 {[%clk 0:02:18]}  axb6 {[%clk 0:02:43]} 13. Nc3 {[%clk 0:02:09]}  g5 {[%clk 0:02:43]} 14. Nd5 {[%clk 0:02:08]}  Ng6 {[%clk 0:02:44]} 15. Bd2 {[%clk 0:01:59]}  h5 {[%clk 0:02:43]} 16. Be1 {[%clk 0:01:59]}  Qd7 {[%clk 0:02:40]} 17. Kg1 {[%clk 0:01:58]}  Rf7 {[%clk 0:02:38]} 18. c3 {[%clk 0:01:55]}  Raf8 {[%clk 0:02:39]} 19. Kf2 {[%clk 0:01:54]}  Rg7 {[%clk 0:02:38]} 20. Ke2 {[%clk 0:01:54]}  g4 {[%clk 0:02:38]} 21. hxg4 {[%clk 0:01:51]}  hxg4 {[%clk 0:02:38]} 22. Bf2 {[%clk 0:01:51]}  g3 {[%clk 0:02:37]} 23. Bg1 {[%clk 0:01:44]}  Nh4 {[%clk 0:02:36]} 24. b4 {[%clk 0:01:41]}  Nxg2 {[%clk 0:02:35]} 25. c5 {[%clk 0:01:41]}  bxc5 {[%clk 0:02:35]} 26. bxc5 {[%clk 0:01:41]}  Nh4 {[%clk 0:02:35]} 27. Rb1 {[%clk 0:01:38]}  Na5 {[%clk 0:02:30]} 28. cxd6 {[%clk 0:01:35]}  cxd6 {[%clk 0:02:30]} 29. Qd3 {[%clk 0:01:32]}  Qa4 {[%clk 0:02:24]} 30. Rb2 {[%clk 0:01:31]}  Nc4 {[%clk 0:02:21]} 31. Rc2 {[%clk 0:01:29]}  g2 {[%clk 0:02:01]} 32. Rfc1 {[%clk 0:01:27]}  Rg3 {[%clk 0:01:56]} 33. Nb4 {[%clk 0:01:26]}  Ne3 {[%clk 0:01:43]} 34. Bxe3 {[%clk 0:01:22]}  fxe3 {[%clk 0:01:43]} 35. Qd5+ {[%clk 0:01:21]}  Rf7 {[%clk 0:01:42]} 36. Rg1 {[%clk 0:01:17]}  Nxf3 {[%clk 0:01:40]} 37. Rcc1 {[%clk 0:01:12]}  Nxg1+ {[%clk 0:01:37]} 38. Rxg1 {[%clk 0:01:13]}  Qa3 {[%clk 0:01:27]} 39. Nd3 {[%clk 0:01:00]}  Qxc3 {[%clk 0:01:24]} 40. Rc1 {[%clk 0:00:54]}  Qd2# {[%clk 0:01:24]} 0-1


[Site "https://www.chess.com"]